{"text_format":"3","workbook":"xlsx","n_sheets":1,"sheets":["Proposta"],"not_rendered":{"images":1,"defined_names":20},"read":"whole","date_system":"1900"}

{"sheet":"Proposta","index":0,"n_rows":39,"n_cols":7,"rows_kept":39,"merged":[[0,1,3,1],[0,3,0,6],[1,4,1,6],[2,4,2,6],[32,3,35,4],[36,3,36,6],[37,3,37,5],[38,3,38,5]]}
[{"$nulls":3},"PROPOSTA DI COSTRUZIONE"]
[{"$nulls":3},"Nome società","| Immettere via e numero civico della società in questa cella"]
[{"$nulls":3},"Telefono","| Immettere numero di fax della società e indirizzo di posta elettronica di contatto in questa cella"]
[{"$nulls":3},"QUANTITÀ","DESCRIZIONE","PREZZO UNITARIO","IMPORTO"]
[null,"CLIENTE",null,10,"Articolo 1",{"v":165,"d":"€ 165.00"},{"$f":"IFERROR(ElementiLinea[[#This Row],[QUANTITÀ]]*ElementiLinea[[#This Row],[PREZZO UNITARIO]], \"\")","v":{"v":1650,"d":"€ 1,650.00"}}]
[null,"Immettere il nome del cliente in questa cella",null,21,"Elemento 2",{"v":40,"d":"€ 40.00"},{"$f":"IFERROR(ElementiLinea[[#This Row],[QUANTITÀ]]*ElementiLinea[[#This Row],[PREZZO UNITARIO]], \"\")","v":{"v":840,"d":"€ 840.00"}}]
[null,"N. STIMA",null,5,"Elemento 3",{"v":10.5,"d":"€ 10.50"},{"$f":"IFERROR(ElementiLinea[[#This Row],[QUANTITÀ]]*ElementiLinea[[#This Row],[PREZZO UNITARIO]], \"\")","v":{"v":52.5,"d":"€ 52.50"}}]
[null,"C-1234",null,164,"Articolo 4",{"v":2.75,"d":"€ 2.75"},{"$f":"IFERROR(ElementiLinea[[#This Row],[QUANTITÀ]]*ElementiLinea[[#This Row],[PREZZO UNITARIO]], \"\")","v":{"v":451,"d":"€ 451.00"}}]
[null,"DATA",null,6,"Articolo 5",{"v":12,"d":"€ 12.00"},{"$f":"IFERROR(ElementiLinea[[#This Row],[QUANTITÀ]]*ElementiLinea[[#This Row],[PREZZO UNITARIO]], \"\")","v":{"v":72,"d":"€ 72.00"}}]
[null,{"$f":"TODAY()","v":"2018-11-19"},null,18,"Articolo 6",{"v":5.5,"d":"€ 5.50"},{"$f":"IFERROR(ElementiLinea[[#This Row],[QUANTITÀ]]*ElementiLinea[[#This Row],[PREZZO UNITARIO]], \"\")","v":{"v":99,"d":"€ 99.00"}}]
[null,"INDIRIZZO",null,1,"Articolo 7",{"v":25,"d":"€ 25.00"},{"$f":"IFERROR(ElementiLinea[[#This Row],[QUANTITÀ]]*ElementiLinea[[#This Row],[PREZZO UNITARIO]], \"\")","v":{"v":25,"d":"€ 25.00"}}]
[null,"Immettere l'indirizzo del cliente in questa cella",{"$nulls":4},{"$f":"IFERROR(ElementiLinea[[#This Row],[QUANTITÀ]]*ElementiLinea[[#This Row],[PREZZO UNITARIO]], \"\")","v":{"v":0,"d":"€ 0.00"}}]
[null,"Città/regione/CAP",{"$nulls":4},{"$f":"IFERROR(ElementiLinea[[#This Row],[QUANTITÀ]]*ElementiLinea[[#This Row],[PREZZO UNITARIO]], \"\")","v":{"v":0,"d":"€ 0.00"}}]
[null,"Immettere CAP, città e regione del cliente in questa cella",{"$nulls":4},{"$f":"IFERROR(ElementiLinea[[#This Row],[QUANTITÀ]]*ElementiLinea[[#This Row],[PREZZO UNITARIO]], \"\")","v":{"v":0,"d":"€ 0.00"}}]
[null,"TELEFONO",{"$nulls":4},{"$f":"IFERROR(ElementiLinea[[#This Row],[QUANTITÀ]]*ElementiLinea[[#This Row],[PREZZO UNITARIO]], \"\")","v":{"v":0,"d":"€ 0.00"}}]
[null,"Immettere il numero di telefono del cliente in questa cella",{"$nulls":4},{"$f":"IFERROR(ElementiLinea[[#This Row],[QUANTITÀ]]*ElementiLinea[[#This Row],[PREZZO UNITARIO]], \"\")","v":{"v":0,"d":"€ 0.00"}}]
[null,"POSTA ELETTRONICA",{"$nulls":4},{"$f":"IFERROR(ElementiLinea[[#This Row],[QUANTITÀ]]*ElementiLinea[[#This Row],[PREZZO UNITARIO]], \"\")","v":{"v":0,"d":"€ 0.00"}}]
[null,"Immettere l'indirizzo di posta elettronica del cliente in questa cella",{"$nulls":4},{"$f":"IFERROR(ElementiLinea[[#This Row],[QUANTITÀ]]*ElementiLinea[[#This Row],[PREZZO UNITARIO]], \"\")","v":{"v":0,"d":"€ 0.00"}}]
[null,"VENDITORE",{"$nulls":4},{"$f":"IFERROR(ElementiLinea[[#This Row],[QUANTITÀ]]*ElementiLinea[[#This Row],[PREZZO UNITARIO]], \"\")","v":{"v":0,"d":"€ 0.00"}}]
[null,"Immettere il venditore in questa cella",{"$nulls":4},{"$f":"IFERROR(ElementiLinea[[#This Row],[QUANTITÀ]]*ElementiLinea[[#This Row],[PREZZO UNITARIO]], \"\")","v":{"v":0,"d":"€ 0.00"}}]
[null,"PROGETTO",{"$nulls":4},{"$f":"IFERROR(ElementiLinea[[#This Row],[QUANTITÀ]]*ElementiLinea[[#This Row],[PREZZO UNITARIO]], \"\")","v":{"v":0,"d":"€ 0.00"}}]
[null,"Immettere il nome del progetto in questa cella",{"$nulls":4},{"$f":"IFERROR(ElementiLinea[[#This Row],[QUANTITÀ]]*ElementiLinea[[#This Row],[PREZZO UNITARIO]], \"\")","v":{"v":0,"d":"€ 0.00"}}]
[null,"PREPARATO DA:",{"$nulls":4},{"$f":"IFERROR(ElementiLinea[[#This Row],[QUANTITÀ]]*ElementiLinea[[#This Row],[PREZZO UNITARIO]], \"\")","v":{"v":0,"d":"€ 0.00"}}]
[null,"Immettere il nome del preparatore in questa cella",{"$nulls":4},{"$f":"IFERROR(ElementiLinea[[#This Row],[QUANTITÀ]]*ElementiLinea[[#This Row],[PREZZO UNITARIO]], \"\")","v":{"v":0,"d":"€ 0.00"}}]
[null,"ATTENZIONE",{"$nulls":4},{"$f":"IFERROR(ElementiLinea[[#This Row],[QUANTITÀ]]*ElementiLinea[[#This Row],[PREZZO UNITARIO]], \"\")","v":{"v":0,"d":"€ 0.00"}}]
[null,"Immettere il nome a cui indirizzare la proposta in questa cella",{"$nulls":4},{"$f":"IFERROR(ElementiLinea[[#This Row],[QUANTITÀ]]*ElementiLinea[[#This Row],[PREZZO UNITARIO]], \"\")","v":{"v":0,"d":"€ 0.00"}}]
[null,"TERMINI DI PAGAMENTO",{"$nulls":4},{"$f":"IFERROR(ElementiLinea[[#This Row],[QUANTITÀ]]*ElementiLinea[[#This Row],[PREZZO UNITARIO]], \"\")","v":{"v":0,"d":"€ 0.00"}}]
[null,"Netto 30",{"$nulls":4},{"$f":"IFERROR(ElementiLinea[[#This Row],[QUANTITÀ]]*ElementiLinea[[#This Row],[PREZZO UNITARIO]], \"\")","v":{"v":0,"d":"€ 0.00"}}]
[null,"SCADENZA",{"$nulls":4},{"$f":"IFERROR(ElementiLinea[[#This Row],[QUANTITÀ]]*ElementiLinea[[#This Row],[PREZZO UNITARIO]], \"\")","v":{"v":0,"d":"€ 0.00"}}]
[null,{"$f":"TODAY()+30","v":"2018-12-19"},{"$nulls":4},{"$f":"IFERROR(ElementiLinea[[#This Row],[QUANTITÀ]]*ElementiLinea[[#This Row],[PREZZO UNITARIO]], \"\")","v":{"v":0,"d":"€ 0.00"}}]
[{"$nulls":5},"SUBTOTALE",{"$f":"SUBTOTAL(109,ElementiLinea[IMPORTO])","v":{"v":3189.5,"d":"€ 3,189.50"}}]
[{"$nulls":3},"LA PROPOSTA INCLUDE LE CONDIZIONI INDICATE:",null,"ALIQUOTA IVA ",{"v":0.0775,"d":"7.75%"}]
[{"$nulls":3},"Immettere le condizioni qui",null,"IVA ",{"$f":"IFERROR(Subtotale*AliquotaIVA, \"\")","v":{"v":247.18625,"d":"€ 247.19"}}]
[{"$nulls":5},"ALTRO "]
[{"$nulls":5},"TOTALE ",{"$f":"IFERROR(Subtotale+G33+Altro, \"\")","v":{"v":3436.68625,"d":"€ 3,436.69"}}]
[]
[{"$nulls":3},"Firmare sotto per accettare l'offerta:"]
[]
[{"$nulls":3},"Rappresentante autorizzato",null,null,"Data"]